fUSD/lending_fUSD_20240330
["ID","MTS","AMOUNT","RATE_DAILY","PERIOD"]
[321019528,1711781439138,-221.02142477,0.0003987,7]
[321019529,1711781439148,-363.95782165,0.0003987,2]
[321019530,1711781439157,-363.95782165,0.0003987,2]
[321019531,1711781439167,-363.95782165,0.0003987,2]
[321019532,1711781439176,-712.14,0.0003987,2]
[321019533,1711781439186,-712.14,0.0003987,2]
[321019534,1711781439196,-712.14,0.0003987,2]
[321019535,1711781439206,-729.44,0.0003987,2]
[321019536,1711781439216,-729.44,0.0003987,2]
[321019537,1711781439225,-729.44,0.0003987,2]
[321019538,1711781439234,-729.44,0.0003987,2]
[321019539,1711781439243,-729.44,0.0003987,2]
[321019540,1711781439252,-729.44,0.0003987,2]
[321019541,1711781439262,-729.44,0.0003987,2]
[321019542,1711781439271,-729.44,0.0003987,2]
[321019543,1711781439281,-729.44,0.0003987,2]
[321019544,1711781439290,-151.033015,0.0003987,3]
[321019545,1711781439300,-1092.6094965,0.00039876,4]
[321019546,1711781439309,-15186.5276679,0.00039877,2]
[321019547,1711781439318,-162.7047773,0.00039878,4]
[321019548,1711781439329,-157.1951378,0.00039879,4]
[321019549,1711781439339,-431.05992528,0.00039879,2]
[321019550,1711781439348,-306.56187665,0.00039879,10]
[321019551,1711781439358,-150.0,0.00039879,2]
[321019552,1711781439369,-300.0,0.00039879,10]
[321019553,1711781439378,-4752196.91547461,0.0003988,2]
[321019554,1711781439391,-1429898.41950288,0.0003988,2]
[321019555,1711781439401,-300.0,0.000399,14]
[321019556,1711781439411,-301.87,0.000399,7]
[321019557,1711781439420,-200.0,0.000399,14]
[321019558,1711781439429,-412.2,0.000399,7]
[321019559,1711781439438,-538.16,0.000399,7]
[321019560,1711781439446,-150.74,0.0003995,2]
[321019561,1711781439456,-123330.37495046,0.0004,2]
[321019562,1711781439464,-3347.8317364,0.0004,4]
[321019563,1711781439473,-300.0,0.00040202,2]
[321019564,1711781439482,-2828.0,0.00040235,3]
[321019565,1711781439491,-155.57425251,0.00040402,4]
[321019566,1711781439500,-9504.95,0.00040486,2]
[321019567,1711781439509,-384.91,0.00040832,2]
[321019568,1711781439518,-222.60704619,0.00040879,2]
[321019569,1711781439526,-150.0,0.00040879,2]
[321019570,1711781439535,-1033.0,0.000409,2]
[321019571,1711781439545,-180.0,0.00041096,2]
[321019572,1711781439553,-18421.18927554,0.00041161,2]
[321019573,1711781439562,-927.41458167,0.00041707,2]
[321019574,1711781439572,-11145.0,0.00041783,2]
[321019575,1711781439582,-150.0,0.00041879,60]
[321019576,1711781439592,-726.16231879,0.00042,2]
[321019577,1711781439601,-726.16231879,0.00042,2]
[321019578,1711781439611,-726.16231879,0.00042,2]
[321019579,1711781439621,-726.16231879,0.00042,2]
[321019580,1711781439631,-726.16231879,0.00042,2]
[321019581,1711781439640,-726.16231879,0.00042,2]
[321019582,1711781439650,-726.16231879,0.00042,2]
[321019583,1711781439659,-726.16231879,0.00042,2]
[321019584,1711781439670,-726.16231879,0.00042,2]
[321019585,1711781439681,-726.16231879,0.00042,2]
[321019586,1711781439690,-726.16231879,0.00042,2]
[321019587,1711781439700,-726.16231879,0.00042,2]
[321019588,1711781439711,-726.16231879,0.00042,2]
[321019589,1711781439720,-726.16231879,0.00042,2]
[321019590,1711781439731,-726.16231879,0.00042,2]
[321019591,1711781439740,-726.16231879,0.00042,2]
[321019592,1711781439750,-726.16231879,0.00042,2]
[321019593,1711781439760,-726.16231879,0.00042,2]
[321019594,1711781439769,-726.16231879,0.00042,2]
[321019595,1711781439779,-726.16231879,0.00042,2]
[321019596,1711781439789,-726.16231879,0.00042,2]
[321019597,1711781439799,-726.16231879,0.00042,2]
[321019598,1711781439808,-726.16231879,0.00042,2]
[321019599,1711781439818,-726.16231879,0.00042,2]
[321019600,1711781439828,-726.16231879,0.00042,2]
[321019601,1711781439838,-726.16231879,0.00042,2]
[321019602,1711781439847,-726.16231879,0.00042,2]
[321019603,1711781439857,-726.16231879,0.00042,2]
[321019604,1711781439866,-726.16231879,0.00042,2]
[321019605,1711781439875,-726.16231879,0.00042,2]
[321019606,1711781439885,-726.16231879,0.00042,2]
[321019607,1711781439895,-726.16231879,0.00042,2]
[321019608,1711781439904,-726.16231879,0.00042,2]
[321019609,1711781439914,-726.16231879,0.00042,2]
[321019610,1711781439923,-726.16231879,0.00042,2]
[321019611,1711781439934,-726.16231879,0.00042,2]
[321019612,1711781439943,-726.16231879,0.00042,2]
[321019613,1711781439952,-726.16231879,0.00042,2]
[321019614,1711781439962,-726.16231879,0.00042,2]
[321019615,1711781439971,-726.16231879,0.00042,2]
[321019616,1711781439980,-726.16231879,0.00042,2]
[321019617,1711781439989,-726.16231879,0.00042,2]
[321019618,1711781439998,-726.16231879,0.00042,2]
[321019619,1711781440007,-726.16231879,0.00042,2]
[321019620,1711781440017,-726.16231879,0.00042,2]
[321019621,1711781440030,-726.16231879,0.00042,2]
[321019623,1711781440039,-726.16231879,0.00042,2]
[321019624,1711781440048,-726.16231879,0.00042,2]
[321019626,1711781440058,-726.16231879,0.00042,2]
[321019628,1711781440067,-726.16231879,0.00042,2]
[321019629,1711781440077,-726.16231879,0.00042,2]
[321019630,1711781440086,-726.16231879,0.00042,2]
[321019631,1711781440095,-726.16231879,0.00042,2]
[321019633,1711781440106,-726.16231879,0.00042,2]
[321019635,1711781440117,-726.16231879,0.00042,2]
[321019637,1711781440127,-726.16231879,0.00042,2]
[321019639,1711781440137,-726.16231879,0.00042,2]
[321019640,1711781440146,-726.16231879,0.00042,2]
[321019641,1711781440155,-726.16231879,0.00042,2]
[321019642,1711781440164,-726.16231879,0.00042,2]
[321019643,1711781440174,-726.16231879,0.00042,2]
[321019644,1711781440183,-726.16231879,0.00042,2]
[321019645,1711781440193,-726.16231879,0.00042,2]
[321019646,1711781440202,-726.16231879,0.00042,2]
[321019647,1711781440211,-726.16231879,0.00042,2]
[321019648,1711781440220,-726.16231879,0.00042,2]
[321019649,1711781440230,-726.16231879,0.00042,2]
[321019650,1711781440239,-726.16231879,0.00042,2]
[321019651,1711781440249,-726.16231879,0.00042,2]
[321019652,1711781440258,-726.16231879,0.00042,2]
[321019653,1711781440267,-726.16231879,0.00042,2]
[321019654,1711781440276,-726.16231879,0.00042,2]
[321019655,1711781440286,-726.16231879,0.00042,2]
[321019656,1711781440296,-726.16231879,0.00042,2]
[321019657,1711781440305,-726.16231879,0.00042,2]
[321019658,1711781440314,-726.16231879,0.00042,2]
[321019659,1711781440324,-726.16231879,0.00042,2]
[321019660,1711781440333,-726.16231879,0.00042,2]
[321019661,1711781440342,-726.16231879,0.00042,2]
[321019662,1711781440352,-726.16231879,0.00042,2]
[321019663,1711781440361,-726.16231879,0.00042,2]
[321019664,1711781440370,-726.16231879,0.00042,2]
[321019665,1711781440379,-726.16231879,0.00042,2]
[321019666,1711781440389,-726.16231879,0.00042,2]
[321019667,1711781440398,-726.16231879,0.00042,2]
[321019668,1711781440407,-726.16231879,0.00042,2]
[321019669,1711781440417,-726.16231879,0.00042,2]
[321019670,1711781440426,-726.16231879,0.00042,2]
[321019671,1711781440435,-726.16231879,0.00042,2]
[321019672,1711781440445,-726.16231879,0.00042,2]
[321019673,1711781440454,-726.16231879,0.00042,2]
[321019674,1711781440464,-726.16231879,0.00042,2]
[321019675,1711781440473,-726.16231879,0.00042,2]
[321019676,1711781440482,-726.16231879,0.00042,2]
[321019677,1711781440491,-726.16231879,0.00042,2]
[321019678,1711781440499,-726.16231879,0.00042,2]
[321019679,1711781440509,-726.16231879,0.00042,2]
[321019680,1711781440519,-726.16231879,0.00042,2]
[321019681,1711781440528,-726.16231879,0.00042,2]
[321019682,1711781440538,-726.16231879,0.00042,2]
[321019683,1711781440547,-781.22299723,0.00042,2]
[321019684,1711781440557,-781.22299723,0.00042,2]
[321019685,1711781440566,-781.22299723,0.00042,2]
[321019686,1711781440575,-781.22299723,0.00042,2]
[321019687,1711781440584,-781.22299723,0.00042,2]
[321019688,1711781440594,-781.22299723,0.00042,2]
[321019689,1711781440603,-781.22299723,0.00042,2]
[321019690,1711781440612,-781.22299723,0.00042,2]
[321019691,1711781440621,-781.22299723,0.00042,2]
[321019692,1711781440631,-781.22299723,0.00042,2]
[321019693,1711781440640,-781.22299723,0.00042,2]
[321019694,1711781440649,-781.22299723,0.00042,2]
[321019695,1711781440658,-781.22299723,0.00042,2]
[321019696,1711781440667,-781.22299723,0.00042,2]
[321019697,1711781440677,-781.22299723,0.00042,2]
[321019698,1711781440686,-781.22299723,0.00042,2]
[321019699,1711781440695,-781.22299723,0.00042,2]
[321019700,1711781440704,-781.22299723,0.00042,2]
[321019701,1711781440713,-781.22299723,0.00042,2]
[321019702,1711781440724,-781.22299723,0.00042,2]
[321019703,1711781440733,-781.22299723,0.00042,2]
[321019704,1711781440742,-781.22299723,0.00042,2]
[321019705,1711781440751,-781.22299723,0.00042,2]
[321019706,1711781440760,-781.22299723,0.00042,2]
[321019707,1711781440769,-781.22299723,0.00042,2]
[321019708,1711781440778,-781.22299723,0.00042,2]
[321019709,1711781440787,-781.22299723,0.00042,2]
[321019710,1711781440796,-781.22299723,0.00042,2]
[321019711,1711781440805,-781.22299723,0.00042,2]
[321019712,1711781440814,-781.22299723,0.00042,2]
[321019713,1711781440824,-3062.365,0.00042052,2]
[321019714,1711781440834,-757.04751115,0.00042307,35]
[321019715,1711781440843,-93000.0,0.00042388,4]
[321019716,1711781440852,-18421.18927554,0.00042545,2]
[321019717,1711781440861,-168.64,0.00042647,2]
[321019718,1711781440870,-250.0,0.00042651,2]
[321019719,1711781440879,-180.0,0.00042653,2]
[321019720,1711781440888,-150.0,0.00042879,60]
[321019721,1711781440896,-301.87,0.000429,7]
[321019722,1711781440905,-412.2,0.000429,7]
[321019723,1711781440914,-538.16,0.000429,7]
[321019724,1711781440923,-251.98,0.00042929,2]
[321019725,1711781440932,-150.0,0.00042962,2]
[321019726,1711781440941,-1048.04,0.00043024,2]
[321019727,1711781440950,-190.18,0.0004309,2]
[321019728,1711781440959,-384.91,0.00043096,2]
[321019729,1711781441102,-1000.0,0.00043227,2]
[321019730,1711781441112,-923.52,0.00043337,2]
[321019731,1711781441121,-795.84,0.00043405,2]
[321019732,1711781441131,-250.0,0.0004348,2]
[321019733,1711781441140,-927.41458167,0.00043614,2]
[321019734,1711781441149,-362.73787435,0.0004371,120]
[321019735,1711781441158,-167.77,0.00043745,2]
[321019736,1711781441168,-165.58,0.00043813,2]
[321019737,1711781441178,-150.0,0.00043879,60]
[321019738,1711781441187,-18421.18927554,0.00043928,2]
[321019739,1711781441196,-150.0,0.00044475,2]
[321019740,1711781441205,-5053.20051508,0.00044627,2]
[321019741,1711781441215,-22709.8399,0.00044793,2]
[321019742,1711781441224,-3368.5161918,0.000448,2]
[321019743,1711781441233,-301.87,0.000448,7]
[321019744,1711781441242,-538.16,0.000448,7]
[321019745,1711781441251,-412.2,0.000448,7]
[321019746,1711781441261,-757.04751115,0.00044814,39]
[321019747,1711781441270,-181.76371302,0.00044893,4]
[321019748,1711781441279,-976.37884959,0.00044894,4]
[321019749,1711781441289,-310.8039683,0.00044895,4]
[321019750,1711781441298,-155.93335881,0.00044895,4]
[321019751,1711781441307,-772.56203,0.00044895,2]
[321019752,1711781441317,-13137.4970397,0.00044895,2]
[321019753,1711781441326,-150318.948,0.00044895,2]
[321019754,1711781441336,-4976.606476,0.00044895,2]
[321019755,1711781441345,-479.99999996,0.00044895,2]
[321019756,1711781441355,-157892.8338028,0.00044895,2]
[321019757,1711781441364,-294.14961,0.00044896,25]
[321019758,1711781441374,-1000.0,0.000449,2]
[321019759,1711781441384,-157.033015,0.00044906,54]
[321019760,1711781441393,-151.033015,0.00044916,55]
[321019761,1711781441402,-157.033015,0.00044926,56]
[321019762,1711781441412,-151.033015,0.00044936,57]
[321019763,1711781441422,-500.0,0.00044968,2]
[321019764,1711781441431,-500.0,0.00044968,2]
[321019765,1711781441440,-500.0,0.00044968,2]
[321019766,1711781441450,-500.0,0.00044968,2]
[321019767,1711781441459,-500.0,0.00044968,2]
[321019768,1711781441468,-500.0,0.00044968,2]
[321019769,1711781441478,-500.0,0.00044968,2]
[321019770,1711781441487,-383.50851781,0.00044968,2]
[321019771,1711781441497,-207.2218864,0.00045,15]
[321019772,1711781441507,-351658.62629822,0.00045,30]
[321019773,1711781441516,-1500.0,0.00045,2]
[321019774,1711781441526,-1500.0,0.00045,2]
[321019775,1711781441535,-1500.0,0.00045,2]
[321019776,1711781441545,-1500.0,0.00045,2]
[321019777,1711781441554,-1500.0,0.00045,2]
[321019778,1711781441564,-1500.0,0.00045,2]
[321019779,1711781441574,-1568.46,0.00045,2]
[321019780,1711781441584,-1500.0,0.00045,2]
[321019781,1711781441593,-387.64376467,0.00045,30]
[321019782,1711781441603,-1248.2736,0.0004514,30]
[321019783,1711781441612,-1688.16616923,0.00045165,2]
[321019784,1711781441621,-832.0,0.00045183,5]
[321019785,1711781441631,-500.0,0.00045204,30]
[321019786,1711781441640,-900.0,0.00045204,30]
[321019787,1711781441649,-700.0,0.00045204,30]
[321019788,1711781441658,-18421.18927554,0.00045311,2]
[321019789,1711781441667,-384.91,0.0004536,2]
[321019790,1711781441676,-500.0,0.00045478,30]
[321019791,1711781441685,-900.0,0.00045478,30]
[321019792,1711781441694,-700.0,0.00045478,30]
[321019793,1711781441703,-927.41458167,0.00045521,2]
[321019794,1711781441711,-158.88519158,0.00045535,2]
[321019795,1711781441720,-152.0,0.00045567,3]
[321019796,1711781441729,-152.0,0.00045567,3]
[321019797,1711781441738,-161.78637706,0.00045595,30]
[321019798,1711781441747,-500.0,0.00045752,30]
[321019799,1711781441756,-900.0,0.00045752,30]
[321019800,1711781441765,-700.0,0.00045752,30]
[321019801,1711781441774,-190.18,0.0004583,2]
[321019802,1711781441783,-844.77,0.00045874,2]
[321019803,1711781441793,-716.22,0.00045874,2]
[321019804,1711781441802,-390.93708734,0.00045877,2]
[321019805,1711781441811,-5301.87181657,0.00045877,2]
[321019806,1711781441820,-301.87,0.00046,7]
[321019807,1711781441830,-500.0,0.00046026,30]
[321019808,1711781441839,-700.0,0.00046026,30]
[321019809,1711781441848,-165.58,0.00046096,2]
[321019810,1711781441857,-538.16,0.000461,7]
[321019811,1711781441867,-412.2,0.000461,7]
[321019812,1711781441876,-154.0,0.00046125,7]
[321019813,1711781441885,-900.0,0.000463,30]
[321019814,1711781441894,-700.0,0.000463,30]
[321019815,1711781441903,-2481.239,0.00046537,2]
[321019816,1711781441912,-5687.0,0.00046537,2]
[321019817,1711781441922,-1177.0,0.00046537,2]
[321019818,1711781441931,-4777.0,0.00046537,2]
[321019819,1711781441940,-43018.0,0.00046537,2]
[321019820,1711781441949,-1048.0,0.00046537,2]
[321019821,1711781441958,-500.0,0.00046574,30]
[321019822,1711781441967,-18421.18927554,0.00046695,2]
[321019823,1711781441976,-150.74,0.00046709,2]
[321019824,1711781441985,-1023.0,0.00046724,5]
[321019825,1711781441994,-900.0,0.00046848,30]
[321019826,1711781442003,-700.0,0.00046848,30]
[321019827,1711781442015,-15308.40237337,0.00046888,60]
[321019828,1711781442025,-157.62344408,0.00046919,30]
[321019829,1711781442034,-209.94556436,0.00047,5]
[321019830,1711781442043,-1169.87319111,0.00047,14]
[321019831,1711781442053,-155.0,0.00047,4]
[321019832,1711781442063,-500.0,0.00047122,30]
[321019833,1711781442073,-1244.52696535,0.00047181,2]
[321019834,1711781442084,-155.34840069,0.00047296,30]
[321019835,1711781442093,-301.87,0.000473,7]
[321019836,1711781442102,-757.04751115,0.0004732,42]
[321019837,1711781442111,-155.34840069,0.0004733,30]
[321019838,1711781442120,-900.0,0.00047396,30]
[321019839,1711781442129,-700.0,0.00047396,30]
[321019840,1711781442138,-927.41458167,0.00047429,2]
[321019841,1711781442147,-384.91,0.00047624,2]
[321019842,1711781442156,-500.0,0.0004767,30]
[321019843,1711781442165,-538.16,0.000477,7]
[321019844,1711781442174,-412.2,0.000477,7]
[321019845,1711781442184,-900.0,0.00047944,30]
[321019846,1711781442193,-700.0,0.00047944,30]
[321019847,1711781442202,-1244.52696535,0.00047977,2]
[321019848,1711781442212,-9478.28005841,0.00048,120]
[321019849,1711781442221,-642.30775472,0.00048,10]
[321019850,1711781442231,-1354.36629078,0.00048,120]
[321019851,1711781442241,-19305.9538678,0.00048,10]
[321019852,1711781442250,-160.00013664,0.00048,15]
[321019853,1711781442259,-155.0,0.00048,15]
[321019854,1711781442268,-692.33706181,0.00048,2]
[321019855,1711781442277,-205.57777778,0.00048,120]
[321019856,1711781442287,-169.77,0.00048,120]
[321019857,1711781442296,-169.77,0.00048,120]
[321019858,1711781442305,-169.77,0.00048,120]
[321019859,1711781442314,-169.77,0.00048,120]
[321019860,1711781442323,-169.77,0.00048,120]
[321019861,1711781442333,-169.77,0.00048,120]
[321019862,1711781442342,-169.77,0.00048,120]
[321019863,1711781442352,-169.77,0.00048,120]
[321019864,1711781442361,-169.77,0.00048,120]
[321019865,1711781442370,-169.77,0.00048,120]
[321019866,1711781442379,-169.77,0.00048,120]
[321019867,1711781442388,-169.77,0.00048,120]
[321019868,1711781442397,-169.77,0.00048,120]
[321019869,1711781442407,-169.77,0.00048,120]
[321019870,1711781442416,-169.77,0.00048,120]
[321019871,1711781442425,-169.77,0.00048,120]
[321019872,1711781442435,-169.77,0.00048,120]
[321019873,1711781442444,-169.77,0.00048,120]
[321019874,1711781442453,-169.77,0.00048,120]
[321019875,1711781442462,-169.77,0.00048,120]
[321019876,1711781442470,-169.77,0.00048,120]
[321019877,1711781442480,-169.77,0.00048,120]
[321019878,1711781442489,-169.77,0.00048,120]
[321019879,1711781442498,-169.77,0.00048,120]
[321019880,1711781442507,-169.77,0.00048,120]
[321019881,1711781442516,-169.77,0.00048,120]
[321019882,1711781442525,-169.77,0.00048,120]
[321019883,1711781442535,-169.77,0.00048,120]
[321019884,1711781442544,-169.77,0.00048,120]
[321019885,1711781442553,-169.77,0.00048,120]
[321019886,1711781442562,-169.77,0.00048,120]
[321019887,1711781442571,-169.77,0.00048,120]
[321019888,1711781442581,-169.77,0.00048,120]
[321019889,1711781442590,-169.77,0.00048,120]
[321019890,1711781442599,-169.77,0.00048,120]
[321019891,1711781442608,-169.77,0.00048,120]
[321019892,1711781442617,-169.77,0.00048,120]
[321019893,1711781442626,-169.77,0.00048,120]
[321019894,1711781442636,-169.77,0.00048,120]
[321019895,1711781442645,-169.77,0.00048,120]
[321019896,1711781442654,-169.77,0.00048,120]
[321019897,1711781442663,-169.77,0.00048,120]
[321019898,1711781442672,-169.77,0.00048,120]
[321019899,1711781442681,-169.77,0.00048,120]
[321019900,1711781442690,-169.77,0.00048,120]
[321019901,1711781442699,-169.77,0.00048,120]
[321019902,1711781442708,-169.77,0.00048,120]
[321019903,1711781442718,-169.77,0.00048,120]
[321019904,1711781442727,-169.77,0.00048,120]
[321019905,1711781442736,-169.77,0.00048,120]
[321019906,1711781442745,-169.77,0.00048,120]
[321019907,1711781442754,-155.2560411,0.00048044,30]
[321019908,1711781442763,-18421.18927554,0.00048078,2]
[321019909,1711781442773,-6752.0,0.00048097,10]
[321019910,1711781442782,-160.61272798,0.00048099,30]
[321019911,1711781442791,-500.0,0.00048218,30]
[321019912,1711781442800,-160.60239348,0.00048302,3]
[321019913,1711781442809,-339.140962,0.00048391,30]
[321019914,1711781442817,-242.243545,0.00048391,30]
[321019915,1711781442826,-171.240319,0.00048391,30]
[321019916,1711781442839,-579.0,0.00048438,30]
[321019917,1711781442848,-540.0,0.00048438,30]
[321019918,1711781442857,-646.0,0.00048438,30]
[321019919,1711781442867,-811.4163126,0.0004849,30]
[321019920,1711781442876,-900.0,0.00048492,30]
[321019921,1711781442885,-700.0,0.00048492,30]
[321019922,1711781442894,-150.0,0.000485,2]
[321019923,1711781442902,-4324.8717903,0.000485,7]
[321019924,1711781442911,-157.033014,0.00048518,93]
[321019925,1711781442920,-157.033014,0.00048538,94]
[321019926,1711781442929,-157.033014,0.00048558,95]
[321019927,1711781442939,-190.18,0.0004857,2]
[321019928,1711781442948,-157.033014,0.00048578,96]
[321019929,1711781442959,-295.99112487,0.00048598,7]
[321019930,1711781442969,-157.033014,0.00048598,97]
[321019931,1711781442978,-205.57777778,0.00048603,120]
[321019935,1711781442987,-1000.0,0.00048631,2]
[321019938,1711781443123,-1161.04649056,0.00048667,24]
[321019939,1711781443132,-153.43144474,0.0004869,39]
[321019941,1711781443141,-150.0,0.00048694,7]
[321019943,1711781443150,-1024.0,0.000487,117]
[321019945,1711781443159,-500.0,0.00048766,30]
[321019947,1711781443168,-14569.9489949,0.00048767,2]
[321019949,1711781443177,-500.0,0.00048767,9]
[321019951,1711781443186,-500.0,0.00048767,9]
[321019953,1711781443195,-500.0,0.00048767,9]
[321019956,1711781443205,-500.0,0.00048767,9]
[321019959,1711781443214,-167795.3687999,0.00048767,2]
[321019962,1711781443223,-5555.1979981,0.00048767,2]
[321019964,1711781443233,-5000.0,0.00048767,3]
[321019968,1711781443243,-145076.1542281,0.00048767,2]
[321019969,1711781443252,-1244.52696535,0.00048772,2]
[321019974,1711781443262,-427.20543381,0.00048774,4]
[321019977,1711781443271,-150.01,0.00048789,2]
[321019980,1711781443280,-2980.55311034,0.00048789,2]
[321019983,1711781443289,-3477.31196206,0.00048789,2]
[321019986,1711781443298,-23508.02832832,0.0004879,2]
[321019988,1711781443307,-5000.0,0.0004879,120]
[321019989,1711781443317,-500.0,0.00048793,9]
[321019992,1711781443326,-2620.17,0.00048793,2]
[321019994,1711781443336,-2620.17,0.00048793,2]
[321019996,1711781443346,-2620.17,0.00048793,2]
[321019998,1711781443355,-2620.17,0.00048793,2]
[321020000,1711781443365,-2620.17,0.00048793,2]
[321020001,1711781443374,-2620.17,0.00048793,2]
[321020005,1711781443383,-2620.17,0.00048793,2]
[321020007,1711781443393,-2620.17,0.00048793,2]
[321020008,1711781443402,-2620.17,0.00048793,2]
[321020009,1711781443411,-2620.17,0.00048793,2]
[321020010,1711781443420,-2620.17,0.00048793,2]
[321020011,1711781443430,-2620.17,0.00048793,2]
[321020012,1711781443439,-2620.17,0.00048793,2]
[321020013,1711781443448,-2620.17,0.00048793,2]
[321020014,1711781443458,-2620.17,0.00048793,2]
[321020015,1711781443467,-2620.17,0.00048793,2]
[321020016,1711781443477,-2620.17,0.00048793,2]
[321020017,1711781443486,-2620.17,0.00048793,2]
[321020018,1711781443495,-2620.17,0.00048793,2]
[321020019,1711781443505,-2620.17,0.00048793,2]
[321020020,1711781443514,-2620.17,0.00048793,2]
[321020021,1711781443524,-2620.17,0.00048793,2]
[321020022,1711781443533,-2620.17,0.00048793,2]
[321020023,1711781443542,-2620.21939108,0.00048793,2]
[321020024,1711781443551,-234113.20037812,0.00048794,2]
[321020025,1711781443560,-194.38462144,0.00048798,4]
[321020026,1711781443569,-155.0,0.00048799,4]
[321020027,1711781443578,-500.0,0.00048799,9]
[321020028,1711781443588,-299089.58084739,0.000488,20]
[321020029,1711781443597,-210.0,0.000488,120]
[321020030,1711781443606,-229.757325,0.000488,67]
[321020031,1711781443615,-221.0,0.000488,30]
[321020032,1711781443625,-301.87,0.000488,7]
[321020033,1711781443634,-1586.85504978,0.000488,120]
[321020034,1711781443643,-5000.0,0.000488,120]
[321020035,1711781443652,-150.0,0.00048801,7]
[321020036,1711781443661,-150.0,0.00048808,7]
[321020037,1711781443670,-300.0,0.00048813,2]
[321020038,1711781443678,-300.0,0.00048813,2]
[321020039,1711781443687,-300.0,0.00048813,2]
[321020040,1711781443697,-300.0,0.00048813,2]
[321020041,1711781443706,-300.0,0.00048813,2]
[321020042,1711781443715,-300.0,0.00048813,2]
[321020043,1711781443725,-300.0,0.00048813,2]
[321020044,1711781443734,-500.0,0.00048813,9]
[321020045,1711781443743,-856.798623,0.00048814,2]
[321020046,1711781443752,-16002.40095,0.00048814,2]
[321020047,1711781443761,-185271.7896,0.00048814,2]
[321020048,1711781443770,-150.0,0.00048841,7]
[321020049,1711781443779,-300.0,0.00048846,2]
[321020050,1711781443788,-300.0,0.00048846,2]
[321020051,1711781443797,-300.0,0.00048846,2]
[321020052,1711781443806,-300.0,0.00048846,2]
[321020053,1711781443815,-193.94717278,0.00048846,2]
[321020055,1711781443824,-500.0,0.00048846,9]
[321020057,1711781443834,-500.0,0.00048846,9]
[321020059,1711781443843,-500.0,0.00048846,9]
[321020061,1711781443852,-500.0,0.00048846,9]
[321020063,1711781443863,-500.0,0.00048846,9]
[321020065,1711781443872,-500.0,0.00048846,9]
[321020067,1711781443881,-500.0,0.00048846,9]
[321020069,1711781443890,-941.0352159,0.00048847,2]
[321020071,1711781443899,-1025.2718089,0.00048847,2]
[321020073,1711781443908,-1109.5084018,0.00048847,2]
[321020074,1711781443917,-150.0,0.00048848,7]
[321020076,1711781443927,-157.62344409,0.00048869,30]
[321020078,1711781443936,-2885.29379573,0.00048878,4]
[321020080,1711781443945,-155.94093826,0.00048878,4]
[321020081,1711781443954,-156.11509045,0.00048878,4]
[321020082,1711781443963,-6315.37424337,0.00048878,31]
[321020083,1711781443973,-244.31823134,0.00048879,4]
[321020084,1711781443982,-500.0,0.00048879,9]
[321020085,1711781443991,-500.0,0.00048879,9]
[321020086,1711781444000,-500.0,0.00048879,9]
[321020087,1711781444010,-411.22993993,0.00048879,9]
[321020088,1711781444020,-347.61323564,0.0004888,30]
[321020089,1711781444030,-2000.0,0.000489,30]
[321020090,1711781444039,-34657.30211814,0.000489,30]
[321020091,1711781444047,-556.374,0.000489,30]
[321020092,1711781444057,-556.374,0.000489,30]